bitfinex/quotes_ETHUSD_20241207
["timestamp","ask_amount","ask_price","bid_price","bid_amount"]
[1733533291728,0.4441,4013.4,4013.3,0.69768]
[1733533292054,1.51623805,4013.4,4013.3,0.69768]
[1733533292559,2.5883761,4013.4,4012.5,0.69781]
[1733533292728,1.07213805,4012.6,4012.2,0.69786]
[1733533292935,1.07213805,4012.3,4012.2,0.69786]
[1733533295252,0.4441,4012.7,4012.2,0.69786]
[1733533295415,1.07213805,4012.3,4012.2,1.49656]
[1733533298567,1.07213805,4012.3,4012.2,0.69786]
[1733533298859,1.22376186,4012.3,4012.2,0.69786]
[1733533301231,1.07213805,4012.3,4012.2,0.69786]
[1733533303881,2.1442761,4012.3,4012.2,0.69786]
[1733533305132,1.07213805,4012.3,4012.2,0.69786]
[1733533305986,1.07213805,4012.3,4012.1,0.69788]
[1733533306187,1.51623805,4012.8,4012.7,0.69778]
[1733533306188,1.07213805,4012.8,4012.7,0.69778]
[1733533306471,1.4829243,4013.4,4012.8,0.69775]
[1733533306672,0.4441,4013.4,4012.9,0.69774]
[1733533307061,0.4441,4013.4,4012.6,0.7987]
[1733533307272,0.4441,4013.4,4013.3,0.69768]
[1733533307473,1.91500723,4014.1,4013.6,0.69762]
[1733533307659,1.20719447,4014.0,4013.9,0.69757]
[1733533307864,0.34732437,4014.0,4013.5,0.69764]
[1733533308070,0.6441,4014.1,4013.5,0.69764]
[1733533308656,2.3220887,4013.6,4013.5,0.69764]
[1733533312296,2.3220887,4013.7,4013.6,0.69762]
[1733533312591,0.48496068,4014.6,4014.5,0.69747]
[1733533312967,1.0388243,4014.9,4014.6,0.69745]
[1733533313195,0.30411608,4014.8,4014.7,0.69743]
[1733533313498,2.3220887,4014.7,4014.6,0.69745]
[1733533314360,2.7661887,4014.7,4014.4,0.69748]
[1733533314602,2.3220887,4014.5,4014.4,0.69748]
[1733533315881,2.3220887,4014.5,4013.6,0.69762]
[1733533316093,2.3220887,4014.0,4013.6,0.69762]
[1733533316394,2.55429757,4014.0,4013.9,0.69757]
[1733533317592,2.55429757,4014.0,4013.7,0.69759]
[1733533317794,0.23220887,4014.0,4013.8,0.69758]
[1733533317955,0.4441,4014.1,4013.2,0.7985]
[1733533318155,2.3220887,4013.7,4013.6,0.69762]
[1733533318604,2.3220887,4013.7,4013.6,1.49612]
[1733533320279,2.3220887,4013.7,4013.6,0.69762]
[1733533321580,2.3220887,4013.7,4012.7,0.52333]
[1733533321581,2.3220887,4013.7,4013.0,1.32179]
[1733533321905,2.3220887,4013.1,4013.0,0.52329]
[1733533322619,2.3220887,4013.5,4013.4,0.52324]
[1733533323479,0.4441,4014.4,4014.3,0.52312]
[1733533323722,2.3220887,4014.4,4014.3,0.52312]
[1733533327817,2.3220887,4014.4,4014.3,1.32162]
[1733533329327,0.4441,4015.5,4015.4,0.52298]
[1733533329660,2.3220887,4015.5,4015.4,0.52298]
[1733533331046,2.3220887,4015.9,4015.8,0.52293]
[1733533336075,2.3220887,4016.3,4016.2,0.52288]
[1733533336270,2.3220887,4016.3,4016.2,1.32638]
[1733533336500,2.4884031,4016.7,4016.6,0.52283]
[1733533336869,0.1663144,4016.7,4016.6,0.52283]
[1733533343647,0.1663144,4016.7,4016.6,1.32633]
[1733533344524,4.4e-06,4016.7,4016.6,1.32633]
[1733533346635,4.4e-06,4016.7,4016.6,1.28633]
[1733533348127,4.4e-06,4016.7,4016.6,0.48283]
[1733533350853,4.4e-06,4016.7,4016.3,1.35066]
[1733533351350,4.4e-06,4016.7,4016.6,0.52283]
[1733533354142,0.55,4016.6,4016.4,0.52285]
[1733533354328,2.8720887,4016.5,4016.4,0.52285]
[1733533354947,2.8720887,4016.5,4015.7,0.7771]
[1733533355336,2.8720887,4016.5,4016.4,3.52285]
[1733533355657,3.22692894,4016.5,4016.4,0.52285]
[1733533356499,0.4441,4016.3,4015.1,0.7771]
[1733533356650,2.3220887,4016.0,4015.9,0.52292]
[1733533356851,2.3220887,4016.0,4015.6,0.52295]
[1733533357048,0.4441,4015.8,4015.0,0.52302]
[1733533357294,2.3220887,4015.3,4015.2,0.52301]
[1733533357651,2.3220887,4015.3,4014.9,0.52304]
[1733533357878,0.4441,4015.2,4014.8,0.52305]
[1733533358084,0.4441,4015.2,4014.0,0.7771]
[1733533358085,2.3220887,4014.8,4014.7,0.52307]
[1733533358662,2.3220887,4014.8,4014.4,0.52311]
[1733533358862,0.23220887,4014.7,4014.4,0.52311]
[1733533359197,0.13220887,4014.7,4014.6,0.52309]
[1733533359528,0.68220887,4014.7,4014.6,0.52309]
[1733533359792,0.55,4015.1,4014.8,0.52305]
[1733533359971,0.55,4015.1,4014.3,0.52312]
[1733533359972,0.55,4015.1,4014.9,0.52304]
[1733533360153,2.8720887,4015.0,4014.9,0.52304]
[1733533360784,0.55,4014.9,4014.6,0.52308]
[1733533360961,0.55,4014.9,4014.3,0.52312]
[1733533361165,0.83720887,4014.8,4014.7,3.52307]
[1733533361495,0.83720887,4014.8,4014.7,0.52307]
[1733533361968,1.85605329,4017.6,4016.0,0.5229]
[1733533362298,2.3220887,4017.3,4016.6,0.52283]
[1733533362502,2.3220887,4016.9,4016.6,0.52283]
[1733533364161,2.3220887,4017.3,4016.6,0.52283]
[1733533365400,2.3220887,4016.9,4016.6,0.52283]
[1733533368109,0.8326044,4016.7,4016.6,0.52283]
[1733533369318,4.4e-06,4016.7,4016.6,0.52283]
[1733533372119,4.4e-06,4016.7,4016.6,1.33553]
[1733533372425,4.4e-06,4016.7,4016.6,0.52283]
[1733533392527,2.3220931,4016.7,4016.6,0.52283]
[1733533392690,3.44449241,4016.7,4016.6,0.52283]
[1733533393726,3.44449241,4016.7,4016.4,0.52285]
[1733533393908,3.44449241,4016.7,4015.9,0.52292]
[1733533393909,2.3220887,4016.5,4015.9,0.52292]
[1733533394218,1.12240371,4016.7,4015.9,0.52292]
[1733533394219,2.3220887,4016.0,4015.9,0.52292]
[1733533394987,3.1353887,4016.0,4015.9,0.52292]
[1733533396788,2.3220887,4016.0,4015.9,0.52292]
[1733533401585,2.63562757,4016.0,4015.9,0.52292]
[1733533404313,2.63562757,4016.0,4015.8,0.52292]
[1733533404520,2.3220887,4015.9,4015.8,0.52292]
[1733533410700,2.3220887,4015.9,4015.1,0.52301]
[1733533410701,0.7663,4015.8,4015.1,0.52301]
[1733533410898,2.3220887,4015.2,4015.1,0.52301]
[1733533412034,3.32059757,4015.2,4015.1,0.52301]
[1733533415714,3.32059757,4015.2,4014.1,0.996007]
[1733533415715,4.87638627,4015.2,4014.1,0.996007]
[1733533415915,4.87638627,4015.2,4013.9,0.52318]
[1733533415916,0.7663,4014.4,4013.9,0.52318]
[1733533416215,0.7663,4014.4,4013.1,0.7907]
[1733533416558,0.7663,4014.4,4013.2,0.52327]
[1733533416756,0.30883887,4014.3,4013.3,0.52324]
[1733533416914,0.30883887,4014.3,4013.1,0.7907]
[1733533417114,2.3220887,4013.9,4013.3,0.7907]
[1733533417344,2.3220887,4013.9,4013.8,0.52319]
[1733533417547,2.3220887,4013.9,4013.8,1.31389]
[1733533417723,0.7663,4015.0,4014.8,0.52306]
[1733533417928,0.7663,4015.0,4013.8,0.7907]
[1733533418243,0.7663,4015.0,4013.9,0.52318]
[1733533418416,0.7663,4015.0,4014.9,0.52305]
[1733533418618,0.7685,4015.9,4015.2,0.523]
[1733533418842,2.3220887,4015.3,4015.2,0.523]
[1733533420469,2.3220887,4015.3,4014.9,0.52304]
[1733533420680,0.23220887,4015.2,4015.0,0.52303]
[1733533420838,2.3220887,4015.1,4015.0,0.52303]
[1733533421683,0.7685,4015.0,4014.2,0.7912]
[1733533421848,0.7685,4015.0,4014.8,0.52305]
[1733533422536,0.7685,4015.0,4014.9,0.52305]
[1733533424574,0.7685,4015.5,4014.2,0.7912]
[1733533424732,2.3220887,4015.0,4014.9,0.52305]
[1733533427189,2.55429757,4015.0,4014.7,0.52307]
[1733533427698,2.55429757,4015.0,4014.8,0.52306]
[1733533428003,2.55429757,4015.0,4014.9,0.52305]
[1733533428004,2.3220887,4015.0,4014.9,0.52305]
[1733533432279,0.7685,4015.5,4014.5,0.52309]
[1733533432602,2.3220887,4014.8,4014.7,0.52307]
[1733533440299,3.0948887,4014.8,4014.7,0.52307]
[1733533440601,3.40437757,4014.8,4014.7,0.52307]
[1733533440907,3.40437757,4014.8,4014.0,0.52316]
[1733533441111,1.08228887,4014.8,4014.3,0.52311]
[1733533441324,0.7728,4014.8,4014.3,0.52311]
[1733533441622,0.7728,4014.8,4013.4,0.8315]
[1733533442128,0.7728,4014.6,4013.9,0.52316]
[1733533442328,2.3220887,4014.0,4013.9,0.52316]
[1733533446565,2.3220887,4014.0,4013.5,0.02488868]
[1733533446859,0.7728,4013.9,4013.7,0.5232]
[1733533447069,0.7728,4013.9,4013.5,0.02488868]
[1733533447070,0.7728,4013.9,4013.8,0.52319]
[1733533448560,0.7728,4013.9,4013.5,0.02488868]
[1733533448762,0.7728,4013.9,4013.6,0.5232]
[1733533449058,2.3220887,4013.7,4013.5,0.02488868]
[1733533449264,0.30948887,4013.6,4013.5,0.02488868]
[1733533449438,1.09138887,4013.6,4013.5,0.02488868]
[1733533450451,1.09138887,4013.6,4012.2,0.8161]
[1733533450452,0.7819,4013.5,4012.5,0.52336]
[1733533450653,3.1039887,4012.7,4012.3,0.52339]
[1733533450854,2.3220887,4012.4,4012.3,0.52339]
[1733533451444,2.3220887,4012.4,4012.3,1.33949]
[1733533452133,2.3220887,4012.4,4012.3,1.520012]
[1733533452830,2.3220887,4012.8,4012.7,0.52333]
[1733533453686,5.64408627,4012.8,4012.5,0.52336]
[1733533454350,5.64408627,4012.8,4012.3,0.996622]
[1733533454671,2.3220887,4012.4,4012.2,0.52339]
[1733533454874,3.32199757,4012.8,4011.9,0.996622]
[1733533454875,2.3220887,4012.3,4011.9,0.996622]
[1733533455031,0.7677,4012.2,4011.9,0.52343]
[1733533455234,0.30897887,4012.1,4011.9,0.52343]
[1733533455673,0.30897887,4012.1,4011.6,1.81494857]
[1733533455834,2.3220887,4011.8,4011.6,1.81494857]
[1733533456039,2.3220887,4011.8,4011.7,0.52346]
[1733533456453,5.4118774,4011.8,4011.2,0.52353]
[1733533456659,2.3220887,4011.3,4011.2,0.52353]
[1733533459390,5.4118774,4011.3,4010.6,0.5236]
[1733533459593,5.4118774,4011.3,4009.2,0.52379]
[1733533459594,2.3220887,4010.7,4010.5,0.52362]
[1733533459749,3.0897887,4010.6,4010.5,0.52362]
[1733533459954,3.39876757,4010.6,4010.5,0.52362]
[1733533461157,2.63106757,4010.6,4010.5,0.52362]
[1733533462844,0.7677,4011.6,4010.9,0.52357]
[1733533463047,2.3220887,4011.0,4010.9,0.52357]
[1733533463288,3.0897887,4011.0,4010.9,0.52357]
[1733533464779,2.3220887,4011.0,4010.9,0.52357]
[1733533465169,8.7e-06,4011.0,4010.9,0.52357]
[1733533465389,8.7e-06,4011.1,4011.0,0.52356]
[1733533465689,2.3220887,4011.6,4011.5,0.52349]
[1733533466570,2.63106757,4011.6,4011.5,0.52349]
[1733533466771,2.63106757,4011.6,4011.1,0.52354]
[1733533466772,0.7677,4011.5,4011.1,0.52354]
[1733533466968,2.3220887,4011.2,4011.1,0.52354]
[1733533467180,0.7677,4011.8,4011.5,0.52349]
[1733533467380,2.3220887,4011.7,4011.5,0.52349]
[1733533468372,2.3220887,4011.7,4011.6,0.52348]
[1733533468673,1.0757387,4011.7,4011.6,0.52348]
[1733533471275,1.0757387,4011.7,4010.7,0.831]
[1733533471478,0.1,4012.7,4010.5,1.04729]
[1733533471479,3.0733887,4011.3,4011.2,0.52353]
[1733533471821,3.0733887,4011.3,4010.5,0.52367]
[1733533471978,0.30733887,4011.2,4011.1,0.52354]
[1733533477112,2.3220887,4011.3,4011.2,0.52353]
[1733533478997,0.7513,4011.2,4010.5,1.04728]
[1733533479194,2.3220887,4010.7,4010.6,0.52361]
[1733533479403,3.0733887,4010.7,4010.6,0.52361]
[1733533479694,3.38072757,4010.7,4010.6,0.52361]
[1733533482228,3.38072757,4010.7,4009.7,0.831]
[1733533482527,3.38072757,4010.7,4010.6,0.52361]
[1733533486715,3.38072757,4010.7,4009.9,0.5237]
[1733533486919,2.3220887,4010.3,4009.9,0.5237]
[1733533487129,0.23220887,4010.2,4010.1,0.52367]
[1733533488550,0.78220887,4010.2,4010.1,0.52367]
[1733533488925,2.3220887,4010.3,4010.2,0.52366]
[1733533489248,2.8720887,4010.3,4010.2,0.52366]
[1733533491592,2.3220887,4010.3,4010.2,0.52366]
[1733533493649,1.05863887,4010.7,4010.2,0.52366]
[1733533493650,1.60863887,4010.7,4010.6,0.52361]
[1733533493832,3.6233887,4010.7,4010.6,0.52361]
[1733533497669,2.8720887,4010.7,4010.6,0.52361]
[1733533501074,2.3220887,4011.1,4011.0,0.52356]
[1733533501280,4.47458605,4011.1,4010.7,0.52359]
[1733533501596,0.86127098,4011.0,4010.7,0.52359]
[1733533501873,0.42210506,4010.9,4010.8,0.52358]
[1733533504939,1.03769094,4011.4,4011.3,0.52352]
[1733533505238,2.3220887,4011.6,4011.5,0.52349]
[1733533505570,3.18352073,4011.6,4011.5,0.52349]
[1733533505777,3.18352073,4011.6,4010.9,0.52357]
[1733533505778,8.7e-06,4011.2,4010.9,0.52357]
[1733533505950,1.04184878,4011.6,4011.5,0.52349]
[1733533506139,2.3220887,4011.7,4011.6,0.8022]
[1733533506341,2.3220887,4012.0,4011.6,0.8022]
[1733533506714,2.3220887,4012.0,4011.9,0.52344]
[1733533507689,1.0758287,4012.0,4011.9,0.52344]
[1733533507889,2.03525765,4012.8,4012.3,0.52338]
[1733533508185,2.3220887,4012.3,4012.2,0.5234]
[1733533508973,2.3220887,4012.3,4012.2,0.49656248]
[1733533509578,0.7691,4012.2,4010.9,1.34116]
[1733533509794,2.3220887,4011.4,4010.9,1.34116]
[1733533510000,2.3220887,4011.4,4010.9,0.52356]
[1733533510388,2.3220887,4011.4,4011.2,0.34901]
[1733533510590,0.30911887,4011.3,4010.7,0.34906]
[1733533510822,2.3220887,4010.8,4010.7,0.34906]
[1733533512375,2.3220887,4010.8,4010.7,3.34906]
[1733533514263,2.3220887,4011.2,4011.1,0.34903]
[1733533514953,2.3220887,4011.2,4011.1,3.34903]
[1733533515320,2.3220887,4011.2,4011.1,0.34903]
[1733533515520,2.55429757,4011.2,4011.1,3.34903]
[1733533517160,2.55429757,4011.2,4011.1,0.34903]
[1733533517454,3.32339757,4011.2,4011.1,0.34903]
[1733533522399,2.55429757,4011.2,4011.1,0.34903]
[1733533525079,0.23220887,4011.2,4011.1,0.34903]
[1733533525386,2.3220887,4011.6,4010.6,1.16667]
[1733533525387,2.3220887,4011.6,4011.5,0.34899]
[1733533530989,2.3220887,4012.0,4011.9,0.34896]
[1733533533118,2.3220887,4012.4,4012.3,0.34892]
[1733533533321,3.18330104,4012.4,4012.3,0.34892]
[1733533533528,2.85741875,4012.4,4012.3,0.34892]
[1733533537602,0.769,4012.3,4009.7,3.12175463]
[1733533537842,2.3220887,4011.8,4011.7,0.34897]
[1733533540148,3.0910887,4011.8,4011.7,0.34897]
[1733533542226,3.95279729,4011.8,4011.7,0.34897]
[1733533542432,4.4522619,4011.8,4011.7,0.34897]
[1733533542728,3.59055331,4011.8,4011.7,0.34897]
[1733533542935,4.45232931,4011.8,4011.7,0.34897]
[1733533543122,3.59055331,4011.8,4011.7,0.34897]
[1733533543531,4.45235743,4011.8,4011.7,0.34897]
[1733533543846,4.45242163,4011.8,4011.7,0.34897]
[1733533544607,6.78717377,4011.8,4011.2,0.34902]
[1733533544843,1.04184878,4011.6,4011.0,0.34904]
[1733533545048,2.3220887,4011.3,4011.2,0.34901]
[1733533549323,3.18433508,4011.3,4011.2,0.34901]
[1733533549522,2.3220887,4011.3,4011.2,0.34901]
[1733533549954,3.1843309,4011.3,4011.2,0.34901]
[1733533550131,3.60694887,4011.3,4011.2,0.34901]
[1733533550349,4.90040022,4011.3,4011.2,0.34901]
[1733533551036,3.60694887,4011.3,4011.2,0.34901]
[1733533551432,3.60695696,4011.3,4011.2,0.34901]
[1733533551635,2.74470667,4011.3,4011.2,0.34901]
[1733533554005,3.60700534,4011.3,4011.2,0.34901]
[1733533554179,4.90057861,4011.3,4011.2,0.34901]
[1733533554362,3.60699455,4011.3,4011.2,0.34901]
[1733533554566,4.90057906,4011.3,4011.2,0.34901]
[1733533554788,3.60699455,4011.3,4011.2,0.34901]
[1733533555157,4.90058707,4011.3,4011.2,0.34901]
[1733533555353,3.60699455,4011.3,4011.2,0.34901]
[1733533555615,4.90070403,4011.3,4011.2,0.34901]
[1733533557307,5.94255281,4011.3,4011.2,0.34901]
[1733533557516,0.797,4011.1,4010.0,0.34912]
[1733533557663,2.3220887,4010.2,4010.1,0.34911]
[1733533559400,3.18460171,4010.2,4009.0,0.8047]
[1733533559593,2.1563201,4010.1,4009.9,0.34913]
[1733533559811,1.0431711,4010.2,4009.9,0.34913]
[1733533560008,1.12333124,4010.1,4009.9,0.34913]
[1733533560233,0.26079277,4010.1,4009.0,0.8047]
[1733533560535,0.26079277,4010.1,4010.0,0.34912]
[1733533560835,3.18460582,4010.1,4010.0,0.34912]
[1733533561148,4.4783978,4010.1,4010.0,0.34912]
[1733533561441,3.18458342,4010.1,4010.0,0.34912]
[1733533561813,2.3220887,4010.1,4010.0,0.34912]
[1733533562008,2.3220887,4010.1,4009.7,3.0]
[1733533562337,2.3220887,4010.1,4009.7,0.34915]
[1733533562338,0.797,4009.9,4009.7,0.34915]
[1733533562494,0.797,4009.9,4009.0,0.8047]
[1733533562495,0.797,4009.9,4009.8,0.34914]
[1733533562700,3.1190887,4009.9,4009.0,0.3492]
[1733533562900,2.3220887,4009.1,4009.0,0.3492]
[1733533567386,0.33652598,4010.0,4009.0,0.3492]
[1733533567387,2.3220887,4009.5,4009.4,0.34917]
[1733533568440,2.55429757,4009.5,4009.4,0.34917]
[1733533568898,2.3220887,4009.5,4009.4,0.34917]
[1733533572083,0.8255,4009.5,4007.5,0.7881]
[1733533572285,4.6441774,4009.6,4007.6,0.34933]
[1733533572286,2.3220887,4008.4,4007.6,0.34933]
[1733533572588,2.3220887,4008.4,4008.3,0.34927]
[1733533573382,2.3220887,4008.4,4008.3,3.34927]
[1733533573587,2.3220887,4008.4,4008.3,0.34927]
[1733533573755,2.3220887,4008.4,4008.3,3.34927]
[1733533573959,1.0747087,4008.4,4008.3,3.34927]
[1733533574146,1.1431711,4009.9,4008.3,3.34927]
[1733533574147,2.3220887,4009.0,4008.8,0.34922]
[1733533574360,2.3220887,4009.0,4008.9,1.13732]
[1733533576061,2.3220887,4009.4,4008.9,0.7881]
[1733533576397,1.0431711,4010.9,4010.4,0.34908]
[1733533576575,1.13880134,4010.8,4009.9,0.34912]
[1733533576767,0.8255,4010.7,4009.9,0.34912]
[1733533577082,0.8255,4010.7,4010.4,0.34909]
[1733533577259,0.8255,4010.7,4009.9,0.34912]
[1733533577683,2.3220887,4010.0,4009.9,0.34912]
[1733533577891,2.55429757,4010.0,4009.9,0.34912]
[1733533579360,3.37979757,4010.0,4009.8,0.34914]
[1733533581203,3.37979757,4010.0,4009.9,0.34913]
[1733533581768,2.55429757,4010.0,4009.9,0.34913]
[1733533585815,2.55429757,4010.0,4009.5,0.34916]
[1733533586024,0.25542976,4009.9,4009.5,0.34916]
[1733533586888,0.25542976,4009.9,4009.8,0.34914]
[1733533593111,2.55429757,4010.0,4009.8,0.34914]
[1733533593112,2.55429757,4010.0,4009.9,0.34913]
[1733533594520,2.55429757,4010.0,4009.8,0.34914]
[1733533594719,2.55429757,4010.0,4009.9,0.34913]
[1733533598884,2.55429757,4010.0,4009.4,0.34917]
[1733533599089,2.55429757,4010.0,4009.8,0.34914]
[1733533599282,0.25542976,4009.9,4009.2,1.13728]
[1733533599518,0.25542976,4009.9,4009.6,0.34916]
[1733533599718,0.25542976,4009.9,4009.4,0.34917]
[1733533599893,2.3220887,4009.6,4009.4,0.34917]
[1733533600098,0.23220887,4009.5,4009.4,0.34917]
[1733533600489,0.23220887,4009.5,4008.9,0.34921]
[1733533600490,0.23220887,4009.5,4009.1,0.3492]
[1733533601326,0.7579,4009.1,4008.8,0.34922]
[1733533601894,0.7579,4009.1,4008.3,1.15516]
[1733533601895,0.7579,4009.1,4008.9,0.34922]
[1733533602094,0.7579,4009.1,4009.0,0.34921]
[1733533602702,1.17021598,4009.1,4009.0,0.34921]
[1733533603409,2.03221755,4009.1,4009.0,0.34921]
[1733533603600,4.36836103,4009.1,4008.3,0.8059]
[1733533603803,2.3220887,4008.8,4008.5,0.34925]
[1733533604000,2.1548858,4008.7,4008.0,1.15519]
[1733533604206,2.3220887,4008.4,4008.0,1.15519]
[1733533604746,2.3220887,4008.4,4008.0,0.8059]
[1733533604904,2.3220887,4008.4,4008.2,0.34927]
[1733533605419,2.3220887,4008.4,4008.0,0.8059]
[1733533605614,2.3220887,4008.4,4008.3,0.34927]
[1733533607307,2.60949903,4008.4,4008.3,0.34927]
[1733533608660,2.60949903,4008.4,4008.0,1.15519]
[1733533608957,3.37529903,4008.4,4008.0,0.3493]
[1733533609451,3.37529903,4008.4,4007.6,0.8192]
[1733533609748,3.37529903,4008.4,4007.3,0.8192]
[1733533609749,2.3220887,4007.8,4007.3,0.8192]
[1733533609923,0.7658,4007.7,4007.5,0.34933]
[1733533610126,2.3220887,4007.4,4007.2,0.34936]
[1733533612758,2.3220887,4007.4,4006.7,0.3494]
[1733533613050,0.23220887,4007.3,4007.1,0.34937]
[1733533614053,0.55,4007.2,4007.1,0.34937]
[1733533615066,1.3158,4007.2,4006.5,0.34943]
[1733533615214,0.23220887,4007.3,4006.6,0.34942]
[1733533615215,0.55,4006.7,4006.6,0.34942]
[1733533616887,0.55,4006.7,4005.2,0.34953]
[1733533616888,1.3158,4006.7,4005.9,0.8192]
[1733533617071,1.3158,4006.7,4006.1,0.34946]
[1733533617072,0.55,4006.2,4006.1,0.34946]
[1733533621491,0.55,4006.2,4005.5,0.8192]
[1733533621694,0.55,4005.7,4005.5,0.8192]
[1733533622000,0.55,4005.7,4005.6,0.34951]
[1733533623104,0.55,4006.1,4005.5,0.8192]
[1733533623399,2.3220887,4006.2,4006.1,0.34946]
[1733533623600,3.0878887,4006.2,4006.0,0.34947]
[1733533623754,3.0878887,4006.2,4006.1,0.34946]
[1733533623952,2.63087757,4006.2,4006.1,0.34946]
[1733533624152,0.25542976,4007.2,4006.2,0.8192]
[1733533624153,2.3220887,4007.0,4006.2,0.8192]
[1733533624354,2.3220887,4007.0,4006.9,1.16859]
[1733533626255,2.8720887,4007.0,4006.9,1.16859]
[1733533626594,2.3220887,4007.0,4006.9,1.16859]
[1733533626801,2.3220887,4007.4,4007.3,0.34936]
[1733533627001,2.55429757,4007.4,4007.3,0.34936]
[1733533628266,3.10429757,4007.4,4007.3,0.34936]
[1733533628904,0.55,4007.3,4006.8,0.3494]
[1733533629105,0.55,4006.8,4006.7,0.34941]
[1733533629466,0.55,4006.8,4006.1,0.34946]
[1733533629804,0.83720887,4006.7,4006.6,0.34942]
[1733533631674,1.3053,4006.6,4006.3,0.34944]
[1733533631977,2.8720887,4006.4,4006.3,0.34944]
[1733533633306,2.3220887,4007.2,4006.7,0.34941]
[1733533633507,2.3220887,4007.2,4006.5,3.0]
[1733533633820,2.3220887,4007.2,4007.1,0.34937]
[1733533634474,2.57751846,4007.2,4007.1,0.34937]
[1733533636711,2.57751846,4007.2,4006.6,0.34942]
[1733533636914,2.3220887,4006.7,4006.6,0.34942]
[1733533642289,2.3220887,4007.1,4006.6,0.34942]
[1733533642494,2.3220887,4007.1,4006.5,0.7667]
[1733533642495,2.3220887,4007.1,4007.0,0.34938]
[1733533642693,0.25542976,4007.2,4007.1,0.34937]
[1733533643031,0.25542976,4007.2,4007.1,1.11607]
[1733533643408,1.01072976,4007.2,4006.4,0.7667]
[1733533643610,2.3220887,4006.5,4006.4,0.34944]
[1733533644440,2.3220887,4006.5,4005.1,0.1]
[1733533644441,2.3220887,4006.5,4006.0,0.34947]
[1733533644733,2.3220887,4006.1,4006.0,0.34947]
[1733533646126,2.3220887,4006.1,4005.7,0.34949]
[1733533646330,2.3220887,4005.8,4005.7,0.34949]
[1733533646632,2.55429757,4005.8,4005.7,0.34949]
[1733533646943,2.55429757,4005.8,4005.2,0.7667]
[1733533647099,2.3220887,4005.4,4005.1,0.34954]
[1733533647634,2.3220887,4005.4,4005.1,0.34955]
[1733533648007,2.3220887,4005.4,4005.3,0.34953]
[1733533648216,2.62982757,4005.4,4005.3,0.34953]
[1733533648615,0.23220887,4005.8,4005.3,0.34953]
[1733533648834,2.3220887,4005.8,4004.9,0.7667]
[1733533649015,2.3220887,4005.8,4004.7,0.34958]
[1733533649016,2.3220887,4006.2,4005.7,1.182]
[1733533649339,2.3220887,4006.6,4006.5,0.34942]
[1733533650107,2.3220887,4006.6,4006.3,0.34944]
[1733533650696,2.3220887,4006.6,4006.1,0.8325]
[1733533650895,0.23220887,4006.5,4006.1,0.8325]
[1733533651099,0.23220887,4006.5,4006.4,0.34944]
[1733533651917,0.23220887,4006.5,4006.2,0.34945]
[1733533652135,0.23220887,4006.5,4005.9,3.34947]
[1733533652136,0.23220887,4006.5,4005.9,3.7864]
[1733533652331,0.23220887,4006.5,4006.4,0.34944]
[1733533655327,0.17412387,4006.5,4006.4,0.34944]
[1733533657385,2.3220887,4006.6,4006.5,0.34943]
[1733533659870,2.3220887,4007.0,4006.9,0.34939]
[1733533668876,2.07447921,4008.2,4007.9,0.7575]
[1733533669081,2.15076798,4008.1,4007.9,0.7575]
[1733533669386,2.07447921,4008.4,4007.9,0.7575]
[1733533669387,2.15076798,4008.0,4007.9,1.10681]
[1733533669907,0.86030719,4008.0,4007.9,1.10681]
[1733533670063,3.1134887,4008.5,4007.8,3.0]
[1733533670265,2.3220887,4008.1,4007.6,0.34933]
[1733533670783,0.85998625,4008.0,4007.6,0.34933]
[1733533670989,0.85994182,4007.9,4007.4,3.34935]
[1733533671189,0.51879679,4008.4,4006.4,0.34944]
[1733533671190,2.3220887,4007.7,4006.4,0.34944]
[1733533671404,2.3220887,4007.7,4006.8,0.34939]
[1733533671696,2.3220887,4007.7,4006.5,0.7575]
[1733533671697,0.23220887,4007.6,4006.5,0.7575]
[1733533672111,0.7914,4008.0,4006.5,0.7575]
[1733533672288,0.7914,4008.0,4005.8,2.5220887]
[1733533672289,2.3220887,4008.1,4007.9,0.3493]
[1733533673556,2.3220887,4008.1,4008.0,0.3493]
[1733533673870,0.51879679,4008.4,4008.1,0.34929]
[1733533674071,0.51879679,4008.4,4007.4,0.7575]
[1733533674230,3.1134887,4008.5,4007.4,0.7575]
[1733533674231,0.36322855,4008.3,4007.4,0.7575]
[1733533674427,0.36322855,4008.3,4007.9,0.3493]
[1733533675124,0.36322855,4008.3,4008.0,0.3493]
[1733533676065,0.36322855,4008.3,4007.8,0.34931]
[1733533677125,0.36322855,4008.3,4007.4,0.7575]
[1733533677330,0.7914,4008.0,4006.5,0.7575]
[1733533677539,0.7914,4008.0,4007.2,0.34936]
[1733533677966,0.7914,4008.0,4006.7,0.3494]
[1733533678171,0.7914,4008.0,4007.3,0.34936]
[1733533678346,0.7914,4008.0,4007.6,0.34933]
[1733533678557,0.34611604,4007.9,4007.6,0.34933]
[1733533678861,0.34611604,4007.9,4007.0,0.7575]
[1733533679047,2.3220887,4008.1,4007.0,0.7575]
[1733533679243,0.34767173,4008.2,4007.0,0.7575]
[1733533679471,2.3220887,4008.5,4008.0,0.3493]
[1733533679667,2.3220887,4008.5,4007.8,0.7575]
[1733533679898,2.3220887,4008.5,4008.1,0.34929]
[1733533681134,2.3220887,4008.5,4007.8,0.7575]
[1733533681334,2.3220887,4008.1,4007.5,0.8215]
[1733533681655,0.23220887,4008.0,4007.6,0.34933]
[1733533682832,0.23220887,4008.0,4007.7,0.34932]
[1733533683083,0.7766,4007.9,4007.4,0.34934]
[1733533683380,0.7766,4007.9,4007.1,0.8215]
[1733533683535,0.7766,4007.9,4007.4,3.0]
[1733533683743,0.33308976,4007.8,4007.2,0.34937]
[1733533683990,0.33308976,4007.8,4007.1,0.8215]
[1733533684285,0.33308976,4007.8,4007.5,0.34934]
[1733533685459,0.33308976,4007.8,4007.1,0.8215]
[1733533685655,0.33308976,4007.8,4007.6,0.34932]
[1733533686306,2.3220887,4008.1,4008.0,0.3493]
[1733533686787,2.3220887,4008.1,4007.8,0.34931]
[1733533687295,2.3220887,4008.1,4007.9,0.3493]
[1733533687494,1.55903109,4008.9,4007.7,0.8215]
[1733533687495,1.03940996,4008.9,4008.6,1.17074]